bitfinex-derivatives/quotes_BTCF0:USTF0_20250710
["timestamp","ask_amount","ask_price","bid_price","bid_amount"]
[1752143656293,0.199318,111100.0,111090.0,4.31838874]
[1752143656490,0.230918,111100.0,111090.0,4.31838874]
[1752143656686,0.230918,111100.0,111090.0,4.183363]
[1752143656886,0.230918,111100.0,111090.0,4.38657193]
[1752143657193,0.230918,111100.0,111090.0,4.19760146]
[1752143657396,0.230918,111100.0,111090.0,4.184363]
[1752143657694,0.230918,111100.0,111090.0,4.37333347]
[1752143657883,0.230918,111100.0,111090.0,4.38657092]
[1752143658081,0.230918,111100.0,111090.0,4.19760045]
[1752143658793,0.230918,111100.0,111090.0,4.33261992]
[1752143659194,0.230918,111100.0,111090.0,4.33263431]
[1752143664800,0.230918,111100.0,111090.0,4.19761484]
[1752143665195,0.230918,111100.0,111090.0,4.184363]
[1752143665398,0.230918,111100.0,111090.0,4.54034057]
[1752143665797,0.230918,111100.0,111090.0,4.3513701]
[1752143666604,0.230918,111100.0,111090.0,4.59194841]
[1752143667706,0.230918,111100.0,111090.0,4.45694131]
[1752143669906,0.230918,111100.0,111090.0,4.59194769]
[1752143670906,0.230918,111100.0,111090.0,4.32436835]
[1752143673811,0.230918,111100.0,111090.0,4.32447327]
[1752143680420,0.230918,111100.0,111090.0,4.3514743]
[1752143681320,0.230918,111100.0,111090.0,4.33271185]
[1752143682221,0.230918,111100.0,111090.0,3.61111185]
[1752143682421,0.230918,111100.0,111090.0,4.33271185]
[1752143682719,0.261518,111100.0,111090.0,4.33271185]
[1752143683221,0.261518,111100.0,111090.0,3.61111185]
[1752143683413,0.261518,111100.0,111090.0,4.33271185]
[1752143684722,0.261518,111100.0,111090.0,4.33271217]
[1752143685222,0.261518,111100.0,111090.0,3.61111217]
[1752143685429,0.261518,111100.0,111090.0,3.08827217]
[1752143688124,0.261518,111100.0,111090.0,2.95326579]
[1752143689527,0.261518,111100.0,111090.0,3.08827509]
[1752143694124,0.261518,111100.0,111090.0,3.07503754]
[1752143694318,0.261518,111100.0,111090.0,3.08828996]
[1752143695931,0.261518,111100.0,111090.0,2.98358066]
[1752143696533,0.261518,111100.0,111090.0,3.09158774]
[1752143698132,0.261518,111100.0,111090.0,3.11858952]
[1752143699229,0.261518,111100.0,111090.0,2.39698952]
[1752143699431,0.261518,111100.0,111090.0,3.11858952]
[1752143700234,0.261518,111100.0,111090.0,3.1053371]
[1752143700434,0.261518,111100.0,111090.0,3.11858978]
[1752143700736,0.261518,111100.0,111090.0,2.63743316]
[1752143700939,0.261518,111100.0,111090.0,3.11858978]
[1752143702337,0.261518,111100.0,111090.0,3.11859003]
[1752143704844,0.261518,111100.0,111090.0,2.98358117]
[1752143707037,0.261518,111100.0,111090.0,3.01658117]
[1752143709042,0.261518,111100.0,111090.0,3.15159003]
[1752143709746,0.229918,111100.0,111090.0,3.15159003]
[1752143711251,0.229918,111100.0,111090.0,3.15159228]
[1752143714153,0.229918,111100.0,111090.0,3.39217052]
[1752143714450,0.199318,111100.0,111090.0,3.01658335]
[1752143714648,0.199318,111100.0,111090.0,3.25716166]
[1752143715652,0.199318,111100.0,111090.0,3.39217052]
[1752143719857,0.199318,111100.0,111090.0,3.39217143]
[1752143722761,0.199318,111100.0,111090.0,3.39216779]
[1752143728260,0.04985775,111110.0,111100.0,0.1799735]
[1752143728465,0.04985775,111110.0,111100.0,2.50321403]
[1752143728654,0.04985775,111110.0,111100.0,2.66912289]
[1752143728853,0.04985775,111110.0,111100.0,2.69373289]
[1752143729053,0.04985775,111110.0,111100.0,2.55872403]
[1752143729252,0.04985775,111110.0,111100.0,2.55995939]
[1752143729453,0.04985775,111110.0,111100.0,2.63257747]
[1752143729655,0.04985775,111110.0,111100.0,2.63357747]
[1752143729853,0.04985775,111110.0,111100.0,2.76858633]
[1752143730767,0.04985775,111110.0,111100.0,2.63357747]
[1752143731064,0.04985775,111110.0,111100.0,2.76858633]
[1752143731764,0.04985775,111110.0,111100.0,3.06318633]
[1752143733655,0.0313,111110.0,111100.0,3.03857633]
[1752143733858,0.0313,111110.0,111100.0,3.06318633]
[1752143734760,0.0313,111110.0,111100.0,2.3414514]
[1752143734962,0.0313,111110.0,111100.0,3.06318633]
[1752143735759,0.0313,111110.0,111100.0,2.92817747]
[1752143736961,0.0313,111110.0,111100.0,3.06318633]
[1752143737270,0.0313,111110.0,111100.0,3.03857633]
[1752143737468,0.0313,111110.0,111100.0,3.06318633]
[1752143739171,0.0313,111110.0,111100.0,3.03611925]
[1752143740272,0.0307,111120.0,111110.0,0.1799573]
[1752143740572,0.0307,111120.0,111110.0,1.94905402]
[1752143740770,0.04678,111120.0,111110.0,2.38992064]
[1752143741170,0.04678,111120.0,111110.0,2.391156]
[1752143741371,0.04678,111120.0,111110.0,2.415766]
[1752143742168,0.04678,111120.0,111110.0,2.42469937]
[1752143743070,0.0307,111120.0,111110.0,2.29215152]
[1752143743373,0.04678,111120.0,111110.0,1.8356049]
[1752143743574,0.04678,111120.0,111110.0,2.61136152]
[1752143744367,0.04778,111120.0,111110.0,2.61136152]
[1752143744871,0.04878,111120.0,111110.0,2.71929937]
[1752143746468,0.04878,111120.0,111110.0,2.71929784]
[1752143746668,0.04878,111120.0,111110.0,2.69229495]
[1752143753075,0.0327,111120.0,111110.0,2.66768495]
[1752143753269,0.0327,111120.0,111110.0,2.69229495]
[1752143754378,0.0327,111120.0,111110.0,2.702843]
[1752143755280,0.0327,111120.0,111110.0,2.62190804]
[1752143755473,0.0327,111120.0,111110.0,2.62190803]
[1752143755679,0.04878,111120.0,111110.0,2.70285037]
[1752143756478,0.04878,111120.0,111110.0,2.46227206]
[1752143756672,0.04878,111120.0,111110.0,2.70523588]
[1752143756872,0.04878,111120.0,111110.0,2.48926757]
[1752143758382,0.04878,111120.0,111110.0,2.12846757]
[1752143758585,0.04878,111120.0,111110.0,2.48926757]
[1752143759383,0.04878,111120.0,111110.0,2.12846757]
[1752143759784,0.04878,111120.0,111110.0,2.36904588]
[1752143761288,0.04878,111120.0,111110.0,2.36904714]
[1752143763185,0.04859,111120.0,111110.0,2.34443714]
[1752143763490,0.04859,111120.0,111110.0,2.36708714]
[1752143763689,0.04859,111120.0,111110.0,2.25914929]
[1752143767199,0.04859,111120.0,111110.0,2.36708714]
[1752143769606,0.04859,111120.0,111110.0,2.36708713]
[1752143770307,0.0327,111120.0,111110.0,2.36708713]
[1752143770506,0.0653,111120.0,111110.0,2.36708713]
[1752143770707,0.08119,111120.0,111110.0,2.36708713]
[1752143772010,0.0653,111120.0,111110.0,2.36708713]
[1752143773110,0.0653,111120.0,111110.0,2.34443713]
[1752143773306,0.0653,111120.0,111110.0,2.36708713]
[1752143781616,0.0653,111120.0,111110.0,2.39768713]
[1752143783113,0.0653,111120.0,111110.0,2.37503713]
[1752143783311,0.0653,111120.0,111110.0,2.39768713]
[1752143783616,0.0653,111120.0,111110.0,2.15710882]
[1752143784618,0.0653,111120.0,111110.0,2.14656024]
[1752143786906,0.0653,111120.0,111110.0,2.17876024]
[1752143787420,0.0653,111120.0,111110.0,2.16469546]
[1752143787618,0.0653,111120.0,111110.0,2.17876024]
[1752143789720,0.002,111120.0,111110.0,1.91553193]
[1752143789922,0.002,111120.0,111110.0,2.42031855]
[1752143792722,0.002,111120.0,111110.0,1.93916193]
[1752143792919,0.002,111120.0,111110.0,2.42031855]
[1752143793114,0.002,111120.0,111110.0,1.93916193]
[1752143793322,0.002,111120.0,111110.0,2.42031855]
[1752143798022,0.002,111120.0,111110.0,2.3123807]
[1752143798626,0.002,111120.0,111110.0,2.42031855]
[1752143803133,0.002,111120.0,111110.0,2.39668855]
[1752143803426,0.002,111120.0,111110.0,2.42031854]
[1752143804924,0.001,111120.0,111110.0,2.42031854]
[1752143805124,0.001,111120.0,111110.0,2.42131854]
[1752143805733,0.4252,111130.0,111120.0,0.1799411]
[1752143805931,0.44115,111130.0,111120.0,2.29604423]
[1752143806135,0.4252,111130.0,111120.0,2.31967423]
[1752143806433,0.4252,111130.0,111120.0,2.32090959]
[1752143807133,0.4262,111130.0,111120.0,2.32090959]
[1752143807332,0.4272,111130.0,111120.0,2.32090959]
[1752143808232,0.4272,111130.0,111120.0,2.32090953]
[1752143809642,0.4272,111130.0,111120.0,1.83975291]
[1752143809843,0.4272,111130.0,111120.0,2.32090953]
[1752143813136,0.4272,111130.0,111120.0,2.28092953]
[1752143813329,0.4272,111130.0,111120.0,2.30455953]
[1752143817238,0.4272,111130.0,111120.0,2.30455952]
[1752143820143,0.4272,111130.0,111120.0,2.29049482]
[1752143820348,0.4272,111130.0,111120.0,2.30455952]
[1752143823151,0.4272,111130.0,111120.0,2.30476952]
[1752143826144,0.4272,111130.0,111120.0,2.33646952]
[1752143829548,0.0664,111130.0,111120.0,2.33646952]
[1752143829753,0.4272,111130.0,111120.0,2.33646952]
[1752143831150,0.4272,111130.0,111120.0,2.33646954]
[1752143833151,0.4272,111130.0,111120.0,2.31262954]
[1752143833361,0.4272,111130.0,111120.0,2.33646954]
[1752143833855,0.4272,111130.0,111120.0,2.36726954]
[1752143836760,0.4272,111130.0,111120.0,2.42127441]
[1752143837464,0.68406831,111130.0,111120.0,2.39047441]
[1752143838453,0.66777831,111130.0,111120.0,2.39047441]
[1752143838760,0.4272,111130.0,111120.0,2.39047441]
[1752143841261,0.66777831,111130.0,111120.0,2.39047441]
[1752143845067,0.66777831,111130.0,111120.0,2.40102296]
[1752143846168,0.66777831,111130.0,111120.0,2.39047441]
[1752143846366,0.66777831,111130.0,111120.0,2.40102296]
[1752143846667,0.66777831,111130.0,111120.0,2.34701809]
[1752143847868,0.4272,111130.0,111120.0,2.34701809]
[1752143848072,0.4272,111130.0,111120.0,2.34701811]
[1752143848867,0.4272,111130.0,111120.0,1.86586149]
[1752143849170,0.4272,111130.0,111120.0,2.33646956]
[1752143849369,0.4272,111130.0,111120.0,2.34701811]
[1752143852072,0.6231749,111130.0,111120.0,2.31531811]
[1752143852268,0.86375321,111130.0,111120.0,2.0747398]
[1752143852567,0.86375321,111130.0,111120.0,0.58140149]
[1752143852768,0.86375321,111130.0,111120.0,1.18107819]
[1752143852970,1.10433152,111130.0,111120.0,0.90165819]
[1752143853173,1.08828152,111130.0,111120.0,0.96748993]
[1752143853379,0.87227321,111130.0,111120.0,0.88647819]
[1752143853672,0.88832321,111130.0,111120.0,0.88647819]
[1752143854973,0.88832321,111130.0,111120.0,0.87323853]
[1752143855175,0.88832321,111130.0,111120.0,0.88649928]
[1752143855377,0.88832321,111130.0,111120.0,0.87595073]
[1752143855676,0.88832321,111130.0,111120.0,0.89113073]
[1752143855867,0.88832321,111130.0,111120.0,0.87595073]
[1752143856068,0.90708025,111130.0,111120.0,0.87595073]
[1752143856269,0.90708025,111130.0,111120.0,0.89113073]
[1752143858580,1.32763456,111130.0,111120.0,0.02856085]
[1752143860980,1.32763456,111130.0,111120.0,0.01462946]
[1752143861171,1.32763456,111130.0,111120.0,0.00123536]
[1752143861779,1.32763456,111130.0,111120.0,0.02869394]
[1752143863192,1.28701456,111130.0,111120.0,0.02869394]
[1752143863390,1.31158456,111130.0,111120.0,0.02869394]
[1752143865592,1.13160856,111130.0,111120.0,0.02869394]
[1752143866792,0.65045194,111130.0,111120.0,0.02869394]
[1752143866989,1.14765856,111130.0,111120.0,0.02869394]
[1752143869402,1.50845856,111130.0,111120.0,0.02869394]
[1752143870800,1.68843456,111130.0,111120.0,0.02869394]
[1752143873100,1.64781456,111130.0,111120.0,0.02869394]
[1752143873301,1.67238456,111130.0,111120.0,0.02869394]
[1752143873900,2.28586456,111130.0,111120.0,0.02869394]
[1752143874199,2.28586456,111130.0,111120.0,0.01462675]
[1752143875401,2.28586456,111130.0,111120.0,0.01461261]
[1752143876302,2.28586456,111130.0,111120.0,0.00123536]
[1752143876702,2.36681343,111130.0,111120.0,0.00123536]
[1752143877601,2.54678943,111130.0,111120.0,0.00123536]
[1752143877903,2.36681343,111130.0,111120.0,0.00123536]
[1752143878600,2.18683743,111130.0,111120.0,0.00123536]
[1752143880807,1.46523743,111130.0,111120.0,0.02868571]
[1752143881008,2.18683743,111130.0,111120.0,0.02868571]
[1752143881514,1.46523743,111130.0,111120.0,0.02868571]
[1752143881707,2.18683743,111130.0,111120.0,0.02868571]
[1752143882511,1.46523743,111130.0,111120.0,0.02868571]
[1752143882713,2.18683743,111130.0,111120.0,0.02868571]
[1752143883208,1.46372743,111130.0,111120.0,0.02868571]
[1752143883411,2.18532743,111130.0,111120.0,0.02868571]
[1752143886713,2.10437856,111130.0,111120.0,0.02868571]
[1752143888309,2.18532743,111130.0,111120.0,0.02868571]
[1752143889014,1.57184743,111130.0,111120.0,0.02868571]
[1752143889214,2.18528743,111130.0,111120.0,0.02868571]
[1752143890815,1.46368743,111130.0,111120.0,0.02868571]
[1752143891016,2.18528743,111130.0,111120.0,0.02868571]
[1752143891715,2.18528743,111130.0,111120.0,0.02871149]
[1752143892817,1.70413081,111130.0,111120.0,0.02871149]
[1752143893114,2.16222743,111130.0,111120.0,0.02871149]
[1752143893311,2.18528743,111130.0,111120.0,0.02871149]
[1752143898620,2.10433856,111130.0,111120.0,0.02871149]
[1752143901024,2.10433856,111130.0,111120.0,0.02871154]
[1752143901718,2.18528743,111130.0,111120.0,0.02871154]
[1752143901924,2.18528743,111130.0,111120.0,0.0146443]
[1752143902523,2.18528743,111130.0,111120.0,0.1945854]
[1752143902725,2.18524743,111130.0,111120.0,0.0146443]
[1752143903329,2.10429856,111130.0,111120.0,0.0146443]
[1752143903524,2.18525126,111130.0,111120.0,0.0146443]
[1752143904431,2.10429856,111130.0,111120.0,0.0146443]
[1752143907329,2.18525068,111130.0,111120.0,0.0146443]
[1752143911734,2.18525068,111130.0,111120.0,0.02871121]
[1752143912033,2.18525068,111130.0,111120.0,0.02868073]
[1752143913132,2.16219068,111130.0,111120.0,0.02868073]
[1752143913331,2.18663068,111130.0,111120.0,0.02868073]
[1752143915026,2.10567856,111130.0,111120.0,0.02868073]
[1752143915835,1.62452194,111130.0,111120.0,0.02868073]
[1752143916227,2.10567856,111130.0,111120.0,0.02868073]
[1752143920839,2.10567856,111130.0,111120.0,0.02867965]
[1752143921838,2.18663068,111130.0,111120.0,0.02867965]
[1752143923139,2.16219068,111130.0,111120.0,0.02867965]
[1752143923341,2.18663068,111130.0,111120.0,0.02867965]
[1752143923731,2.18663068,111130.0,111120.0,0.01461274]
[1752143923931,2.18663068,111130.0,111120.0,0.02867985]
[1752143924739,2.18663068,111130.0,111120.0,0.20862095]
[1752143924932,2.18663068,111130.0,111120.0,0.02867985]
[1752143928942,1.94589237,111130.0,111120.0,0.02867985]
[1752143929643,1.94589237,111130.0,111120.0,0.01530226]
[1752143929944,2.18647068,111130.0,111120.0,0.0286622]
[1752143930744,1.57323068,111130.0,111120.0,0.0286622]
[1752143933151,1.54879068,111130.0,111120.0,0.0286622]
[1752143933350,1.57323068,111130.0,111120.0,0.0286622]
[1752143934849,1.33265237,111130.0,111120.0,0.0286622]
[1752143935554,1.57323068,111130.0,111120.0,0.0286622]
[1752143935751,1.57323068,111130.0,111120.0,0.02866203]
[1752143937952,1.57323068,111130.0,111120.0,0.0145953]
[1752143942257,1.57323068,111130.0,111120.0,0.02866213]
[1752143942653,1.49227856,111130.0,111120.0,0.02866213]
[1752143943055,1.49227856,111130.0,111120.0,0.03866213]
[1752143943255,1.57361607,111130.0,111120.0,0.03866213]
[1752143945959,1.58361607,111130.0,111120.0,0.03866213]
[1752143950768,1.58361607,111130.0,111120.0,0.03867569]
[1752143951870,1.58361607,111130.0,111120.0,0.02460886]
[1752143952471,1.58361607,111130.0,111120.0,0.03867571]
[1752143953777,1.58361607,111130.0,111120.0,0.03867576]
[1752143957874,1.58361607,111130.0,111120.0,0.03867579]
[1752143959283,0.86201607,111130.0,111120.0,0.03867579]
[1752143959477,1.59960607,111130.0,111120.0,0.03867579]
[1752143960881,1.59960607,111130.0,111120.0,0.02530221]
[1752143961882,1.59960607,111130.0,111120.0,0.01123536]
[1752143962183,1.59960607,111130.0,111120.0,0.02031125]
[1752143963188,1.58361607,111130.0,111120.0,0.02031125]
[1752143966988,1.34303776,111130.0,111120.0,0.02031125]
[1752143967189,1.28560776,111130.0,111120.0,0.45700066]
[1752143967491,1.28560776,111130.0,111120.0,0.51950066]
[1752143967890,1.28560776,111130.0,111120.0,0.54400066]
[1752143968387,1.28560776,111130.0,111120.0,0.51950066]
[1752143970985,1.29467049,111130.0,111120.0,0.51950066]
[1752143972282,1.31767049,111130.0,111120.0,0.06878125]
[1752143972479,1.34887049,111130.0,111120.0,0.06878125]
[1752143973189,1.32587049,111130.0,111120.0,0.05261125]
[1752143973395,1.34887049,111130.0,111120.0,0.06774125]
[1752143974194,1.34887049,111130.0,111120.0,0.24768235]
[1752143974794,1.34887049,111130.0,111120.0,0.261036]
[1752143975795,1.34887049,111130.0,111120.0,0.27510228]
[1752143976190,1.34912756,111130.0,111120.0,0.27510228]
[1752143977091,1.26818005,111130.0,111120.0,0.27510228]
[1752143978497,1.24518005,111130.0,111120.0,0.27510228]
[1752143980096,0.28065515,111130.0,111120.0,0.7807589]
[1752143980301,0.22000174,111130.0,111120.0,2.07833645]
[1752143980801,0.04007684,111130.0,111120.0,2.07833645]
[1752143981298,0.22000174,111130.0,111120.0,2.07833645]
[1752143981598,0.22000174,111130.0,111120.0,2.07833451]
[1752143983406,0.22000174,111130.0,111120.0,2.06320451]
[1752143985304,0.04007684,111130.0,111120.0,2.06320451]
[1752143987006,0.22000174,111130.0,111120.0,2.06320451]
[1752143987201,0.22000174,111130.0,111120.0,1.58204789]
[1752143987399,0.22000174,111130.0,111120.0,2.06320447]
[1752143988202,0.46058005,111130.0,111120.0,2.06320447]
[1752143988808,0.22000174,111130.0,111120.0,2.06320447]
[1752143989801,0.22000174,111130.0,111120.0,1.82262616]
[1752143989802,0.46058005,111130.0,111120.0,1.82262616]
[1752143990704,0.46058005,111130.0,111120.0,1.58204785]
[1752143991012,0.23501174,111130.0,111120.0,1.82262616]
[1752143991203,0.46058005,111130.0,111120.0,1.82262616]
[1752143991606,0.47559005,111130.0,111120.0,1.58204785]
[1752143991804,0.83639005,111130.0,111120.0,1.82262616]
[1752143992010,0.83639005,111130.0,111120.0,1.58204785]
[1752143992312,0.83639005,111130.0,111120.0,1.82262616]
[1752143992517,0.86649005,111130.0,111120.0,1.84084323]
[1752143992814,0.86649005,111130.0,111120.0,1.80004899]
[1752143993204,0.86649005,111130.0,111120.0,1.77554899]
[1752143993205,0.85148005,111130.0,111120.0,1.77554899]
[1752143993414,0.86649005,111130.0,111120.0,1.80004899]
[1752143994007,0.86649005,111130.0,111120.0,1.84084323]
[1752143994714,0.86649005,111130.0,111120.0,1.85405719]
[1752143995108,0.86649005,111130.0,111120.0,1.82265719]
[1752143995309,0.89909005,111130.0,111120.0,1.76864639]
[1752143997218,0.89909005,111130.0,111120.0,1.82265719]
[1752143997416,0.89909005,111130.0,111120.0,1.76864639]
[1752143998520,0.89909005,111130.0,111120.0,1.58207888]
[1752143999019,0.89909005,111130.0,111120.0,1.82265719]
[1752144000021,0.91709619,111130.0,111120.0,1.82265719]
[1752144001116,0.91709619,111130.0,111120.0,1.80859249]
[1752144001316,0.91709619,111130.0,111120.0,1.82265803]
[1752144003225,0.90208619,111130.0,111120.0,1.79815803]
[1752144003427,0.91802619,111130.0,111120.0,1.82130803]
[1752144003727,0.66150788,111130.0,111120.0,1.82130803]
[1752144004025,0.91802619,111130.0,111120.0,1.82130803]
[1752144006029,0.91802619,111130.0,111120.0,1.82133128]
[1752144006922,0.91802619,111130.0,111120.0,1.82132483]
[1752144009732,0.91802619,111130.0,111120.0,1.82133125]
[1752144010838,0.91802619,111130.0,111120.0,1.58075294]
[1752144011235,0.90208619,111130.0,111120.0,1.55760294]
[1752144011535,0.91802619,111130.0,111120.0,1.58075294]
[1752144012537,0.91802619,111130.0,111120.0,1.54845294]
[1752144013237,0.90208619,111130.0,111120.0,1.52530294]
[1752144013438,0.91802619,111130.0,111120.0,1.54845294]
[1752144015235,0.91802619,111130.0,111120.0,1.87004745]
[1752144015634,0.91802619,111130.0,111120.0,1.87005835]
[1752144016939,0.90208619,111130.0,111120.0,1.87005835]
[1752144017140,0.91802619,111130.0,111120.0,1.73503135]
[1752144019339,0.91802619,111130.0,111120.0,1.78904215]
[1752144021441,0.91802619,111130.0,111120.0,1.54846384]
[1752144021841,0.91802619,111130.0,111120.0,1.78904215]
[1752144023733,0.90208619,111130.0,111120.0,1.78904215]
[1752144024035,0.91802619,111130.0,111120.0,1.78904215]
[1752144027038,0.91802619,111130.0,111120.0,1.87005835]
[1752144027547,0.91802619,111130.0,111120.0,1.9023619]
[1752144029556,0.91802619,111130.0,111120.0,1.66178359]
[1752144029846,0.91802619,111130.0,111120.0,1.9023619]
[1752144032146,0.67744788,111130.0,111120.0,1.9023619]
[1752144032445,0.91802619,111130.0,111120.0,1.9023619]
[1752144032745,0.91802619,111130.0,111120.0,1.66178359]
[1752144032948,0.91802619,111130.0,111120.0,1.9023619]
[1752144033247,0.90208619,111130.0,111120.0,1.8792119]
[1752144033448,0.91765619,111130.0,111120.0,1.9019019]
[1752144033841,0.90208619,111130.0,111120.0,1.9019019]
[1752144034141,0.91765619,111130.0,111120.0,1.66132359]
[1752144034336,0.91765619,111130.0,111120.0,1.9019019]
[1752144036355,0.67707788,111130.0,111120.0,1.9019023]
[1752144036547,0.91765619,111130.0,111120.0,1.91245145]
[1752144038453,0.91765619,111130.0,111120.0,1.83143525]
[1752144039247,0.91765619,111130.0,111120.0,1.59085694]
[1752144039453,0.91765619,111130.0,111120.0,1.83143525]
[1752144040053,0.91765619,111130.0,111120.0,1.55855694]
[1752144040249,0.91765619,111130.0,111120.0,1.79913525]
[1752144040849,0.91765619,111130.0,111120.0,1.55855705]
[1752144043055,0.67707788,111130.0,111120.0,1.55855705]
[1752144043247,0.90208619,111130.0,111120.0,1.53586705]
[1752144043553,0.90208619,111130.0,111120.0,1.55855705]
[1752144043751,0.67707788,111130.0,111120.0,1.79913536]
[1752144043952,0.91765619,111130.0,111120.0,1.79913536]
[1752144044349,0.91765619,111130.0,111120.0,1.53586705]
[1752144047257,0.55685619,111130.0,111120.0,1.53586705]
[1752144047451,0.91765619,111130.0,111120.0,1.53586705]
[1752144048659,0.91765619,111130.0,111120.0,1.61688325]
[1752144049652,0.91765619,111130.0,111120.0,1.63957325]
[1752144053157,0.90208619,111130.0,111120.0,1.63957325]
[1752144053358,0.91765619,111130.0,111120.0,1.79913536]
[1752144053753,0.91765619,111130.0,111120.0,1.79913556]
[1752144055449,0.91765619,111130.0,111120.0,1.55855725]
[1752144055654,0.91765619,111130.0,111120.0,1.79913556]
[1752144058665,0.91765619,111130.0,111120.0,1.55855725]
[1752144058851,0.91765619,111130.0,111120.0,1.79913556]
[1752144061669,0.91765619,111130.0,111120.0,1.79916233]
[1752144061965,0.91765619,111130.0,111120.0,1.55858402]
[1752144062261,0.91765619,111130.0,111120.0,1.79916233]
[1752144063263,0.91751619,111130.0,111120.0,1.55950402]
[1752144063452,0.90208619,111130.0,111120.0,1.55950402]
[1752144063861,0.91751619,111130.0,111120.0,1.55950402]
[1752144064358,1.1580945,111130.0,111120.0,0.31037402]
[1752144064557,1.1580945,111130.0,111120.0,0.93791402]
[1752144064760,1.1580945,111130.0,111120.0,0.92736467]
[1752144067168,1.1580945,111130.0,111120.0,0.87335387]
[1752144073278,1.1426645,111130.0,111120.0,0.87335387]
[1752144076270,1.1426645,111130.0,111120.0,0.87338064]
[1752144077477,1.5034645,111130.0,111120.0,0.87338064]
[1752144080781,1.26288619,111130.0,111120.0,0.87338064]
[1752144082189,1.26288619,111130.0,111120.0,0.8733813]
[1752144085101,1.26288619,111130.0,111120.0,0.87341548]
[1752144085584,1.5034645,111130.0,111120.0,0.87341548]
[1752144087786,1.26288619,111130.0,111120.0,0.87341548]
[1752144088090,1.26288619,111130.0,111120.0,0.89828548]
[1752144090895,1.26288619,111130.0,111120.0,0.89828597]
[1752144093297,1.26288619,111130.0,111120.0,0.85823597]
[1752144093496,1.26288619,111130.0,111120.0,0.89970597]
[1752144093696,1.26288619,111130.0,111120.0,0.88636572]
[1752144093996,1.26288619,111130.0,111120.0,0.89968663]
[1752144096699,1.26288619,111130.0,111120.0,0.88562033]
[1752144097000,1.26288619,111130.0,111120.0,0.89968663]
[1752144098400,0.54128619,111130.0,111120.0,0.89968663]
[1752144098603,1.27767575,111130.0,111120.0,0.89968663]
[1752144098898,0.55607575,111130.0,111120.0,0.89968663]
[1752144099097,1.27767575,111130.0,111120.0,0.89968663]
[1752144099500,1.27767575,111130.0,111120.0,0.28732663]
[1752144099703,1.26230575,111130.0,111120.0,0.89956663]
[1752144101503,0.54070575,111130.0,111120.0,0.89956663]
[1752144101794,0.55607575,111130.0,111120.0,0.89956663]
[1752144102000,1.27767575,111130.0,111120.0,0.89956663]
[1752144102500,1.27767575,111130.0,111120.0,0.89956862]
[1752144103398,1.26230575,111130.0,111120.0,0.89956862]
[1752144105197,1.02172744,111130.0,111120.0,0.89956862]
[1752144105502,1.26230575,111130.0,111120.0,0.89956862]
[1752144105804,1.50288406,111130.0,111120.0,0.89956862]
[1752144106001,1.26230575,111130.0,111120.0,0.89956862]
[1752144107299,1.34325326,111130.0,111120.0,0.89956862]
[1752144108501,1.34325326,111130.0,111120.0,0.89956879]
[1752144111900,0.62165326,111130.0,111120.0,0.89956879]
[1752144112107,1.35862326,111130.0,111120.0,0.89956879]
[1752144112307,1.34325326,111130.0,111120.0,0.89956879]
[1752144114103,1.34325326,111130.0,111120.0,0.89956938]
[1752144114510,1.26230575,111130.0,111120.0,0.93036938]
[1752144114811,1.02172744,111130.0,111120.0,0.93036938]
[1752144115109,1.26230575,111130.0,111120.0,1.17094769]
[1752144115313,1.26230575,111130.0,111120.0,0.93036938]
[1752144117209,1.02172744,111130.0,111120.0,0.93036938]
[1752144117414,1.26230575,111130.0,111120.0,0.93036938]
[1752144121714,1.26230575,111130.0,111120.0,0.91704572]
[1752144121915,1.26230575,111130.0,111120.0,0.93036998]
[1752144122428,1.26230575,111130.0,111120.0,1.17094829]
[1752144122919,1.26230575,111130.0,111120.0,0.93036998]
[1752144123420,1.26230575,111130.0,111120.0,0.92801998]
[1752144124623,1.26230575,111130.0,111120.0,0.98203078]
[1752144125822,0.54070575,111130.0,111120.0,0.98203078]
[1752144126024,1.27766575,111130.0,111120.0,0.98203078]
[1752144126615,1.03708744,111130.0,111120.0,0.98203078]
[1752144126815,1.27766575,111130.0,111120.0,0.9925805]
[1752144130426,1.03708744,111130.0,111120.0,0.9925805]
[1752144130633,1.27766575,111130.0,111120.0,0.92801998]
[1752144133332,1.26230575,111130.0,111120.0,0.88889998]
[1752144133535,1.26230575,111130.0,111120.0,0.92801998]
[1752144133934,1.26230575,111130.0,111120.0,0.92802255]
[1752144134232,0.30012744,111130.0,111120.0,0.92802255]
[1752144134433,1.27766575,111130.0,111120.0,0.92802255]
[1752144136827,1.27766575,111130.0,111120.0,0.92802282]
[1752144138338,0.55606575,111130.0,111120.0,0.92802282]
[1752144138535,1.27766575,111130.0,111120.0,0.92802282]
[1752144141737,1.03708744,111130.0,111120.0,0.92802282]
[1752144141931,1.27766575,111130.0,111120.0,0.92802282]
[1752144143236,1.26230575,111130.0,111120.0,0.88890282]
[1752144143440,1.26230575,111130.0,111120.0,0.92802282]
[1752144146630,1.26230575,111130.0,111120.0,0.93857254]
[1752144147939,1.26230575,111130.0,111120.0,0.92802282]
[1752144148535,1.26230575,111130.0,111120.0,0.93857254]
[1752144149042,1.26230575,111130.0,111120.0,0.92802282]
[1752144151441,1.26230575,111130.0,111120.0,0.92802021]
[1752144153243,1.26230575,111130.0,111120.0,0.88890021]
[1752144153437,1.26230575,111130.0,111120.0,0.92836021]
[1752144154344,1.26230575,111130.0,111120.0,0.92836015]
[1752144154637,1.26230575,111130.0,111120.0,0.98237095]
[1752144154834,1.26230575,111130.0,111120.0,0.99292063]
[1752144156241,1.02172744,111130.0,111120.0,0.99292063]
[1752144156541,1.26230575,111130.0,111120.0,0.99292063]
[1752144157136,1.34325326,111130.0,111120.0,0.99292063]
[1752144157346,1.34325326,111130.0,111120.0,0.93890983]
[1752144158846,1.34325326,111130.0,111120.0,0.92836015]
[1752144159044,1.34325326,111130.0,111120.0,1.16893846]
[1752144160339,0.62165326,111130.0,111120.0,1.16893846]
[1752144160546,1.35935326,111130.0,111120.0,1.16893846]
[1752144161849,1.35935326,111130.0,111120.0,0.92836015]
[1752144161850,0.63775326,111130.0,111120.0,0.92836015]
[1752144162148,1.35935326,111130.0,111120.0,0.92836015]
[1752144163247,1.34325326,111130.0,111120.0,0.88890015]
[1752144163450,1.34325326,111130.0,111120.0,0.90397015]
[1752144163750,1.10267495,111130.0,111120.0,0.92836015]
[1752144163951,1.34325326,111130.0,111120.0,0.92836015]
[1752144165254,0.62165326,111130.0,111120.0,0.92836015]
[1752144165552,1.35935326,111130.0,111120.0,0.92836015]
[1752144165951,1.35935326,111130.0,111120.0,0.92835748]
[1752144167148,1.27840575,111130.0,111120.0,0.92835748]
[1752144168761,1.27840575,111130.0,111120.0,0.91503566]
[1752144168967,1.27840575,111130.0,111120.0,0.92835756]
[1752144169263,1.03782744,111130.0,111120.0,0.92835756]
[1752144169465,1.27840575,111130.0,111120.0,0.92835756]
[1752144170061,1.03782744,111130.0,111120.0,0.92835756]
[1752144170464,1.27840575,111130.0,111120.0,0.92835756]